bitfinex/quotes_BTCUSD_20251102
["timestamp","ask_amount","ask_price","bid_price","bid_amount"]
[1762099325342,0.52801005,110220.0,110210.0,0.21881041]
[1762099325992,0.51170005,110220.0,110210.0,0.21881041]
[1762099326673,0.02177468,110220.0,110210.0,0.24158041]
[1762099326886,0.50242537,110230.0,110220.0,0.18145527]
[1762099327097,0.50242537,110230.0,110220.0,0.19809527]
[1762099327523,0.51873537,110230.0,110220.0,0.19809527]
[1762099327706,0.71703247,110230.0,110220.0,0.18145527]
[1762099327955,0.53559367,110230.0,110220.0,0.18145527]
[1762099328380,0.50242537,110230.0,110220.0,0.19809527]
[1762099328556,0.48992537,110230.0,110220.0,0.19809527]
[1762099328800,0.67136417,110230.0,110220.0,0.19809527]
[1762099329024,0.48992537,110230.0,110220.0,0.19809527]
[1762099329869,0.82992537,110240.0,110230.0,0.1814388]
[1762099330085,1.02821005,110240.0,110230.0,0.2038188]
[1762099330351,0.84623537,110240.0,110230.0,0.2038188]
[1762099330537,0.18142235,110240.0,110230.0,0.2038188]
[1762099330777,0.67134772,110240.0,110230.0,0.2038188]
[1762099330991,0.48992537,110240.0,110230.0,0.2038188]
[1762099332114,0.67134772,110240.0,110230.0,0.2038188]
[1762099332564,0.48992537,110240.0,110230.0,0.2038188]
[1762099332782,0.67134772,110240.0,110230.0,0.2038188]
[1762099333208,0.68765772,110240.0,110230.0,0.02238]
[1762099333414,0.68765772,110240.0,110230.0,0.2038188]
[1762099334082,0.22757155,110250.0,110230.0,0.2038188]
[1762099334298,0.48992537,110240.0,110230.0,0.2038188]
[1762099334518,0.67134772,110240.0,110230.0,0.2038188]
[1762099334746,0.48992537,110240.0,110230.0,0.2279288]
[1762099335208,0.50257074,110250.0,110240.0,0.18142235]
[1762099335468,0.00014537,110250.0,110240.0,0.19778235]
[1762099335700,0.00014537,110250.0,110240.0,0.22189235]
[1762099337230,0.00014537,110250.0,110240.0,0.31215728]
[1762099338592,0.00014537,110250.0,110240.0,1.14208265]
[1762099339052,0.00014537,110250.0,110240.0,1.19079883]
[1762099340863,0.00014537,110250.0,110240.0,0.70087346]
[1762099341077,0.00014537,110250.0,110240.0,0.65215728]
[1762099342634,0.02192005,110250.0,110240.0,0.65215728]
[1762099343133,0.00014537,110250.0,110240.0,0.65215728]
[1762099345587,0.50214537,110290.0,110280.0,0.18135654]
[1762099345831,0.49080983,110290.0,110280.0,0.20819654]
[1762099346049,0.00088446,110290.0,110280.0,0.23295654]
[1762099346266,0.49080983,110290.0,110280.0,0.23295654]
[1762099346491,0.00088446,110290.0,110280.0,0.81314684]
[1762099346746,0.00088446,110290.0,110280.0,0.66322147]
[1762099347206,0.00088446,110290.0,110280.0,0.32322147]
[1762099349466,0.00088446,110290.0,110280.0,0.23295654]
[1762099349688,0.51804983,110290.0,110280.0,0.20819654]
[1762099349912,0.54141468,110290.0,110280.0,0.20819654]
[1762099350136,0.51417468,110290.0,110280.0,0.20819654]
[1762099350358,0.51417468,110290.0,110280.0,0.23295654]
[1762099350609,0.02424931,110290.0,110280.0,0.23295654]
[1762099350885,0.19046764,110270.0,110230.0,0.5806949]
[1762099351118,0.19046764,110270.0,110190.0,0.00999999]
[1762099351119,0.18145527,110220.0,110190.0,0.00999999]
[1762099351348,0.18145527,110220.0,110180.0,0.68051966]
[1762099351349,0.05886624,110210.0,110180.0,0.68051966]
[1762099351630,0.01137,110230.0,110210.0,0.01163]
[1762099351839,0.19281742,110230.0,110210.0,0.02853216]
[1762099352026,0.52539537,110230.0,110210.0,0.01690216]
[1762099352269,0.48992537,110220.0,110210.0,0.01690216]
[1762099352531,0.50579537,110220.0,110210.0,0.01690216]
[1762099352750,0.03560171,110230.0,110210.0,0.21000389]
[1762099352751,0.50142708,110230.0,110210.0,0.21000389]
[1762099352958,0.49005708,110230.0,110210.0,0.02853216]
[1762099353193,0.50579537,110220.0,110210.0,0.03504933]
[1762099353431,0.52989537,110220.0,110210.0,0.01690216]
[1762099353650,0.48992537,110220.0,110210.0,0.19310173]
[1762099354084,0.50579537,110220.0,110210.0,0.18147173]
[1762099355007,0.48992537,110220.0,110210.0,0.19310173]
[1762099355249,0.49005708,110230.0,110220.0,0.18145527]
[1762099355460,0.51415708,110230.0,110220.0,0.18145527]
[1762099355719,0.00013171,110230.0,110220.0,0.19308527]
[1762099356602,0.01600171,110230.0,110220.0,0.18145527]
[1762099357974,0.55270693,110230.0,110200.0,0.1905579]
[1762099358213,0.51716537,110210.0,110190.0,0.19057592]
[1762099358688,0.54126537,110210.0,110190.0,0.19057592]
[1762099358907,0.01587,110200.0,110190.0,0.19057592]
[1762099359120,0.01587,110200.0,110190.0,0.00907523]
[1762099359121,0.52989537,110200.0,110190.0,0.00907523]
[1762099359305,0.52989537,110200.0,110190.0,0.1905799]
[1762099360215,0.01137,110210.0,110200.0,0.1814882]
[1762099360441,0.50129537,110210.0,110200.0,0.1814882]
[1762099360666,0.54126537,110210.0,110200.0,0.1814882]
[1762099360891,0.05134,110210.0,110200.0,0.1814882]
[1762099361346,0.54126537,110210.0,110200.0,0.1814882]
[1762099363186,0.02724,110210.0,110200.0,0.1814882]
[1762099364335,0.51402537,110220.0,110200.0,0.1814882]
[1762099364336,0.51402537,110220.0,110210.0,0.18147173]
[1762099364552,0.02724,110210.0,110200.0,0.1814882]
[1762099364771,0.51716537,110210.0,110200.0,0.1814882]
[1762099365213,0.02724,110210.0,110200.0,0.1814882]
[1762099366318,0.02724,110210.0,110200.0,0.1931182]
[1762099366735,0.02724,110210.0,110200.0,0.1814882]
[1762099367611,0.0241,110220.0,110210.0,0.18147173]
[1762099367824,0.52951537,110220.0,110210.0,0.18147173]
[1762099368039,0.03959,110220.0,110210.0,0.18147173]
[1762099368258,0.52951537,110220.0,110210.0,0.18147173]
[1762099368507,0.18147361,110210.0,110190.0,0.1905799]
[1762099368747,0.51713537,110200.0,110190.0,0.18150467]
[1762099372090,0.72224357,110200.0,110190.0,0.18150467]
[1762099372298,0.54075537,110200.0,110190.0,0.18150467]
[1762099373387,0.18150467,110190.0,110180.0,0.18151714]
[1762099373599,0.72226004,110190.0,110180.0,0.18151714]
[1762099373818,0.51713537,110190.0,110180.0,0.19314714]
[1762099374301,0.01172,110200.0,110190.0,0.18150467]
[1762099374507,0.50164537,110210.0,110200.0,0.1814882]
[1762099374718,0.51713537,110210.0,110200.0,0.1814882]
[1762099375513,0.54075537,110210.0,110200.0,0.1814882]
[1762099375729,0.7222271,110210.0,110200.0,0.1814882]
[1762099376145,0.51713537,110210.0,110200.0,0.1814882]
[1762099377633,0.7222271,110210.0,110200.0,0.1814882]
[1762099377884,0.54075537,110210.0,110200.0,0.1814882]
[1762099378509,0.48996445,110210.0,110200.0,0.1814882]
[1762099378946,0.67143618,110210.0,110200.0,0.1814882]
[1762099379366,0.67143618,110210.0,110190.0,0.18165004]
[1762099379572,0.23361757,110210.0,110200.0,0.1814882]
[1762099379773,0.05214584,110210.0,110200.0,0.1814882]
[1762099379978,0.06763584,110210.0,110200.0,0.1814882]
[1762099380412,0.04401584,110210.0,110200.0,0.1931182]
[1762099380826,0.46634445,110210.0,110200.0,0.1931182]
[1762099381249,0.46634445,110210.0,110200.0,0.1814882]
[1762099381470,0.48996445,110210.0,110200.0,0.1814882]
[1762099381725,0.67143618,110210.0,110190.0,0.18165004]
[1762099381944,0.42232861,110200.0,110190.0,0.18165004]
[1762099382161,0.45462445,110200.0,110190.0,0.19328004]
[1762099382851,0.43913445,110200.0,110190.0,0.19328004]
[1762099383715,0.45462445,110200.0,110190.0,0.19328004]
[1762099383956,0.65973265,110200.0,110190.0,0.00014537]
[1762099384626,1.13769244,110200.0,110190.0,0.00014537]
[1762099384815,1.33769244,110200.0,110190.0,0.00014537]
[1762099385927,1.33776178,110200.0,110190.0,0.00014537]
[1762099387476,1.67776178,110200.0,110190.0,0.00014537]
[1762099387707,1.67776178,110200.0,110160.0,0.01168714]
[1762099387708,0.98004851,110170.0,110160.0,5.714e-05]
[1762099387919,1.04356985,110170.0,110160.0,0.00020254]
[1762099388131,1.06718985,110170.0,110160.0,0.00020254]
[1762099388530,0.86621607,110170.0,110160.0,0.00020254]
[1762099388733,0.86621607,110170.0,110160.0,0.18175664]
[1762099388963,0.52621607,110170.0,110160.0,0.18175664]
[1762099389181,0.70775369,110170.0,110160.0,0.18175664]
[1762099389385,0.52621607,110170.0,110160.0,0.18175664]
[1762099389604,0.70775369,110170.0,110160.0,0.00020254]
[1762099389820,0.46641379,110170.0,110160.0,0.18175664]
[1762099390023,0.46641379,110170.0,110160.0,0.19338664]
[1762099390708,0.01687518,110170.0,110160.0,0.19338664]
[1762099390915,0.01687518,110170.0,110160.0,0.28365157]
[1762099391789,0.43920379,110170.0,110160.0,0.28365157]
[1762099392626,0.43920379,110170.0,110160.0,0.19338664]
[1762099393234,0.70775369,110170.0,110160.0,0.00020254]
[1762099393444,1.4700823,110170.0,110160.0,0.00020254]
[1762099394315,1.50796102,110170.0,110160.0,0.00020254]
[1762099394730,1.48947122,110170.0,110160.0,0.00020254]
[1762099395150,1.59822595,110170.0,110160.0,0.00020254]
[1762099395766,1.57973615,110170.0,110160.0,0.00020254]
[1762099396199,1.57967594,110170.0,110160.0,0.00020254]
[1762099396396,1.73634092,110170.0,110160.0,1e-08]
[1762099396616,1.81131177,110170.0,110160.0,1e-08]
[1762099397230,1.79282197,110170.0,110160.0,1e-08]
[1762099398224,1.82131176,110170.0,110160.0,1e-08]
[1762099398427,1.82131176,110170.0,110140.0,0.00022094]
[1762099398428,0.89024786,110150.0,110140.0,0.00022094]
[1762099398659,1.96389846,110150.0,110140.0,0.00036644]
[1762099398852,1.96389846,110150.0,110140.0,1e-08]
[1762099399268,0.18165304,110100.0,110090.0,0.0002]
[1762099399467,0.68460403,110100.0,110090.0,0.0002]
[1762099399640,0.61660592,110100.0,110090.0,0.0002]
[1762099399839,0.61660592,110100.0,110090.0,0.18186954]
[1762099399840,0.67181175,110100.0,110090.0,0.18186954]
[1762099400186,0.67181175,110100.0,110090.0,0.18297479]
[1762099400376,0.49015871,110100.0,110090.0,0.18297479]
[1762099400592,0.67181175,110100.0,110090.0,0.18297479]
[1762099400955,0.67181175,110100.0,110090.0,0.00130525]
[1762099401163,0.67181175,110100.0,110090.0,0.18297479]
[1762099402024,0.49015871,110100.0,110090.0,0.18297479]
[1762099402640,0.00014513,110100.0,110090.0,0.19460479]
[1762099403514,0.00014513,110100.0,110090.0,0.20623479]
[1762099404412,0.42247374,110100.0,110090.0,0.19460479]
[1762099405922,0.00014513,110100.0,110090.0,0.19460479]
[1762099406139,0.42247374,110100.0,110090.0,0.19460479]
[1762099406350,0.00014513,110100.0,110090.0,0.20623479]
[1762099406559,0.43848374,110100.0,110090.0,0.18297479]
[1762099406773,0.42247374,110100.0,110090.0,0.20623479]
[1762099407004,0.00014513,110100.0,110090.0,0.20623479]
[1762099409858,0.00014513,110100.0,110090.0,0.19460479]
[1762099410083,0.42247374,110100.0,110090.0,0.19460479]
[1762099410950,0.60412678,110100.0,110090.0,0.01293525]
[1762099411163,0.64312678,110100.0,110090.0,0.00130525]
[1762099411653,0.64312678,110100.0,110090.0,0.18297479]
[1762099412353,0.46147374,110100.0,110090.0,0.18297479]
[1762099413156,0.64312678,110100.0,110090.0,0.18297479]
[1762099414293,0.65988775,110100.0,110090.0,0.00130525]
[1762099414916,0.65988775,110100.0,110090.0,0.18297479]
[1762099415999,0.47823471,110100.0,110090.0,0.18297479]
[1762099416876,0.65988775,110100.0,110090.0,0.18297479]
[1762099417425,0.65988775,110100.0,110090.0,0.00130525]
[1762099420342,1.31839864,110100.0,110090.0,0.00130525]
[1762099420571,1.65839864,110100.0,110090.0,0.00130525]
[1762099421219,1.67935938,110100.0,110090.0,0.00130525]
[1762099421430,1.69872574,110100.0,110090.0,0.00130525]
[1762099421651,1.27639713,110100.0,110090.0,0.00130525]
[1762099424116,1.05543639,110100.0,110090.0,0.18297479]
[1762099424346,0.47461107,110100.0,110090.0,0.18297479]
[1762099424570,0.67881411,110100.0,110090.0,0.18297479]
[1762099424780,0.49716107,110100.0,110090.0,0.18297479]
[1762099425002,0.47779471,110100.0,110090.0,0.18297479]
[1762099425229,0.0169061,110100.0,110090.0,0.19460479]
[1762099425456,0.43923471,110100.0,110090.0,0.19460479]
[1762099425925,0.0169061,110100.0,110090.0,0.19460479]
[1762099428836,0.43923471,110100.0,110090.0,0.19460479]
[1762099429253,0.43923471,110100.0,110090.0,0.20623479]
[1762099429665,0.0169061,110100.0,110090.0,0.20623479]
[1762099430988,0.00014513,110100.0,110090.0,0.20623479]
[1762099432911,0.43888374,110100.0,110090.0,0.18297479]
[1762099433128,0.46222374,110100.0,110090.0,0.18297479]
[1762099433569,0.43888374,110100.0,110090.0,0.18297479]
[1762099433782,0.43888374,110100.0,110090.0,0.19460479]
[1762099434895,0.48318448,110100.0,110090.0,0.00130525]
[1762099435142,0.66483752,110100.0,110090.0,0.00130525]
[1762099435587,0.66483752,110100.0,110090.0,0.18297479]
[1762099435804,0.64387678,110100.0,110090.0,0.00130525]
[1762099436206,0.46222374,110100.0,110090.0,0.18297479]
[1762099436477,0.46222374,110100.0,110090.0,0.19460479]
[1762099436478,0.62053678,110100.0,110090.0,0.19460479]
[1762099436907,0.64387678,110100.0,110090.0,0.18297479]
[1762099437348,0.62053678,110100.0,110090.0,0.19460479]
[1762099437551,0.62053678,110100.0,110090.0,0.18297479]
[1762099437974,0.43888374,110100.0,110090.0,0.19460479]
[1762099438390,0.49115565,110100.0,110090.0,0.19460479]
[1762099439028,0.50756565,110100.0,110090.0,0.19460479]
[1762099439247,0.68921869,110100.0,110090.0,0.01293525]
[1762099439460,0.71255869,110100.0,110090.0,0.00130525]
[1762099439698,0.71255869,110100.0,110090.0,0.18297479]
[1762099439914,0.71255869,110100.0,110090.0,0.00130525]
[1762099440805,1.5991912,110100.0,110090.0,0.00130525]
[1762099441046,1.14601419,110100.0,110090.0,0.00130525]
[1762099441272,0.94340041,110100.0,110090.0,0.00130525]
[1762099441495,0.55034536,110100.0,110090.0,0.18297479]
[1762099441715,0.71255869,110100.0,110090.0,0.18297479]
[1762099441932,0.22154817,110100.0,110090.0,0.18297479]
[1762099442140,0.71255869,110100.0,110090.0,0.18297479]
[1762099445322,0.53090565,110100.0,110090.0,0.18297479]
[1762099445540,0.71255869,110100.0,110090.0,0.18297479]
[1762099447337,0.71255869,110100.0,110090.0,0.00130525]
[1762099447812,1.57975149,110100.0,110090.0,0.00130525]
[1762099448038,1.60071223,110100.0,110090.0,0.00130525]
[1762099448269,1.62013448,110100.0,110090.0,0.00130525]
[1762099448482,1.12912396,110100.0,110090.0,0.00130525]
[1762099449824,1.62013448,110100.0,110090.0,0.00130525]
[1762099450041,1.82013448,110100.0,110090.0,0.00130525]
[1762099455396,1.80071223,110100.0,110090.0,0.00130525]
[1762099457669,1.82011246,110100.0,110090.0,0.00130525]
[1762099457910,1.82011246,110100.0,110080.0,0.0002]
[1762099457911,1.01268006,110090.0,110080.0,0.0002]
[1762099458174,1.2088675,110090.0,110080.0,0.0002]
[1762099458412,0.18175049,110050.0,110030.0,0.00581]
[1762099458648,0.69937261,110040.0,110030.0,0.00581]
[1762099458877,0.18177567,110030.0,110020.0,0.00601]
[1762099459109,0.72312619,110030.0,110020.0,0.00601]
[1762099459375,0.18178974,110020.0,110000.0,31.23076604]
[1762099459606,0.51762052,110030.0,110020.0,0.01183]
[1762099459836,0.68435912,110030.0,110020.0,0.01183]
[1762099460066,0.69938912,110030.0,110020.0,0.00154869]
[1762099460289,0.72311912,110030.0,110020.0,0.00154869]
[1762099460755,0.72311912,110030.0,110020.0,0.18333381]
[1762099461221,0.51762052,110030.0,110020.0,0.19516381]
[1762099461463,0.03531,110040.0,110030.0,0.1817686]
[1762099461464,0.50259052,110040.0,110030.0,0.1817686]
[1762099461705,0.01158,110050.0,110040.0,0.18175209]
[1762099461937,0.68430958,110060.0,110040.0,0.19358209]
[1762099462165,0.52632052,110060.0,110050.0,0.18173557]
[1762099462392,0.49101052,110060.0,110050.0,0.19937557]
[1762099462616,0.49101052,110060.0,110050.0,0.00581]
[1762099462617,0.68775958,110060.0,110050.0,0.00581]
[1762099462840,0.68775958,110060.0,110050.0,0.18754557]
[1762099462841,0.71148958,110060.0,110050.0,0.18754557]
[1762099463103,0.71148958,110060.0,110050.0,0.18802905]
[1762099463335,0.50604052,110060.0,110050.0,0.18802905]
[1762099463560,0.03531,110070.0,110050.0,0.19985905]
[1762099463561,0.68429623,110070.0,110050.0,0.19985905]
[1762099463795,0.49101052,110060.0,110050.0,0.19985905]
[1762099464257,0.5387728,110070.0,110060.0,0.18171906]
[1762099464476,0.01625,110060.0,110050.0,0.19985905]
[1762099464710,0.50726052,110060.0,110050.0,0.19985905]
[1762099464942,0.49101052,110060.0,110050.0,0.19985905]
[1762099465381,0.5387728,110070.0,110060.0,0.18171906]
[1762099465654,0.5550228,110070.0,110060.0,0.19354906]
[1762099465882,0.51884052,110070.0,110060.0,0.19354906]
[1762099467026,0.5387728,110080.0,110070.0,0.18170255]
[1762099467238,0.72045884,110080.0,110070.0,0.18170255]
[1762099467451,0.76042884,110080.0,110070.0,0.18170255]
[1762099467872,0.18170255,110070.0,110060.0,0.18171906]
[1762099468084,0.68896307,110070.0,110060.0,0.18171906]
[1762099468287,0.50726052,110070.0,110060.0,0.18171906]
[1762099468915,0.50726052,110070.0,110060.0,0.19354906]
[1762099470226,0.18171906,110060.0,110050.0,0.18802726]
[1762099470453,0.68897958,110060.0,110050.0,0.18221726]
[1762099470690,0.71269958,110060.0,110050.0,0.18221726]
[1762099471126,0.53098052,110060.0,110050.0,0.18221726]
[1762099471263,0.71269958,110060.0,110050.0,0.18221726]
[1762099471471,0.53098052,110060.0,110050.0,0.18221726]
[1762099472080,0.50726052,110060.0,110050.0,0.19985726]
[1762099472546,0.49101052,110060.0,110050.0,0.19985726]
[1762099472751,0.49101052,110060.0,110050.0,0.21168726]
[1762099472979,0.04776228,110080.0,110070.0,0.18170255]
[1762099473244,0.5387728,110080.0,110070.0,0.18170255]
[1762099473465,0.5787428,110080.0,110070.0,0.18170255]
[1762099476808,0.76042884,110080.0,110070.0,0.18170255]
[1762099478138,0.76042884,110080.0,110060.0,0.18170413]
[1762099478415,0.50726052,110070.0,110060.0,0.19353413]
[1762099479799,0.68896307,110070.0,110060.0,0.19353413]
[1762099480231,0.68896307,110070.0,110060.0,0.01183]
[1762099480486,0.68896307,110070.0,110060.0,0.19354906]
[1762099480986,0.50726052,110070.0,110060.0,0.19354906]
[1762099481865,0.68896307,110070.0,110060.0,0.19354906]
[1762099482085,0.50726052,110070.0,110060.0,0.19344906]
[1762099483457,0.68896307,110070.0,110060.0,0.19344906]
[1762099483703,0.71268307,110070.0,110060.0,0.18161906]
[1762099484157,0.71268307,110070.0,110050.0,0.19710741]
[1762099484387,0.71268307,110070.0,110050.0,0.00048348]
[1762099484388,0.71045958,110060.0,110050.0,0.00048348]
[1762099484615,0.77063385,110060.0,110050.0,0.00048348]
[1762099484837,0.77063385,110060.0,110050.0,0.0013682]
[1762099485287,0.58891479,110060.0,110050.0,0.18310377]
[1762099485499,0.74795385,110060.0,110050.0,0.20074377]
[1762099485707,0.56623479,110060.0,110050.0,0.20074377]
[1762099485932,0.72396186,110060.0,110050.0,0.20074377]
[1762099486188,0.74725186,110060.0,110050.0,0.18891377]
[1762099486631,0.49101052,110060.0,110050.0,0.20074377]
[1762099486855,0.70889535,110070.0,110060.0,0.18171906]
[1762099487108,0.20500906,110060.0,110050.0,0.00048348]
[1762099487338,0.22137906,110060.0,110050.0,0.00048348]
[1762099487569,0.25756134,110060.0,110050.0,0.0013682]
[1762099488012,0.07584228,110060.0,110050.0,0.18310377]
[1762099488232,0.50738052,110060.0,110050.0,0.20074377]
[1762099488507,0.50738052,110060.0,110050.0,0.18891377]
[1762099488727,0.71238958,110060.0,110050.0,0.0013682]
[1762099489856,0.53067052,110060.0,110050.0,0.18310377]
[1762099490084,0.53067052,110060.0,110050.0,0.18891377]
[1762099490085,0.71238958,110060.0,110050.0,0.18891377]
[1762099491566,0.71238958,110060.0,110050.0,0.0071782]
[1762099491785,0.71238958,110060.0,110050.0,0.0013682]
[1762099493338,0.77159638,110060.0,110050.0,0.0013682]
[1762099493795,1.13100722,110060.0,110050.0,0.0013682]
[1762099494453,1.33100722,110060.0,110050.0,0.0013682]
[1762099494679,1.82201774,110060.0,110050.0,0.0013682]
[1762099494895,1.8461825,110060.0,110050.0,0.0013682]
[1762099495105,1.35517198,110060.0,110050.0,0.0013682]
[1762099495523,1.33100722,110060.0,110050.0,0.0013682]
[1762099495971,1.13100722,110060.0,110050.0,0.0013682]
[1762099496182,1.33100722,110060.0,110050.0,0.0013682]
[1762099497260,1.3079827,110060.0,110050.0,0.0013682]
[1762099497481,1.07180042,110060.0,110050.0,0.0013682]
[1762099497899,1.05238958,110060.0,110050.0,0.0013682]
[1762099498109,1.08857186,110060.0,110050.0,0.0013682]
[1762099498550,1.04057322,110060.0,110050.0,0.0013682]
[1762099498769,1.48716861,110060.0,110050.0,0.0013682]
[1762099499448,1.68716861,110060.0,110050.0,0.0013682]
[1762099500556,1.26353685,110060.0,110050.0,0.0013682]
[1762099500764,1.24415673,110060.0,110050.0,0.0013682]
[1762099500978,1.2211931,110060.0,110050.0,0.0013682]
[1762099501228,0.03966,110060.0,110050.0,0.18310377]
[1762099501448,0.44000176,110060.0,110050.0,0.20074377]
[1762099502762,0.62172082,110060.0,110050.0,0.18891377]
[1762099502965,0.64501082,110060.0,110050.0,0.18891377]
[1762099503180,0.64501082,110060.0,110050.0,0.0071782]
[1762099503394,0.64501082,110060.0,110050.0,0.0013682]
[1762099503611,0.44000176,110060.0,110050.0,0.20074377]
[1762099504605,0.01158,110080.0,110070.0,0.18170255]
[1762099504832,0.6332678,110080.0,110070.0,0.18170255]
[1762099505068,0.69274008,110080.0,110070.0,0.18214483]
[1762099505296,1.11637184,110080.0,110070.0,0.00044228]
[1762099505578,0.48776404,110080.0,110070.0,0.19397483]
[1762099505818,0.48776404,110080.0,110070.0,0.18214483]
[1762099506287,0.66945008,110080.0,110070.0,0.18214483]
[1762099506727,0.48776404,110080.0,110070.0,0.19397483]
[1762099506956,0.48776404,110080.0,110070.0,0.18214483]
[1762099506957,0.66945008,110080.0,110070.0,0.18214483]
[1762099507190,0.69274008,110080.0,110070.0,0.18214483]
[1762099507890,0.48776404,110080.0,110070.0,0.18214483]
[1762099508115,0.48776404,110080.0,110070.0,0.19397483]
[1762099508580,0.66945008,110080.0,110070.0,0.18214483]
[1762099508835,0.66945008,110080.0,110070.0,0.19397483]
[1762099509053,0.48776404,110080.0,110070.0,0.19397483]
[1762099509885,0.66945008,110080.0,110070.0,0.19397483]
[1762099510124,0.48776404,110080.0,110070.0,0.19397483]
[1762099510565,0.42363176,110080.0,110070.0,0.19397483]
[1762099512112,0.44000176,110080.0,110070.0,0.19397483]
[1762099512330,0.42363176,110080.0,110070.0,0.19397483]
[1762099513539,0.44000176,110080.0,110070.0,0.19397483]
[1762099514405,0.42363176,110080.0,110070.0,0.19397483]
[1762099514622,0.07105228,110090.0,110080.0,0.18168604]
[1762099514836,0.06400228,110090.0,110080.0,0.19351604]
[1762099515051,0.08862228,110090.0,110080.0,0.18168604]
[1762099515311,0.27029182,110090.0,110080.0,0.18190716]
[1762099515522,0.27029182,110090.0,110080.0,0.00022112]
[1762099515722,0.36055675,110090.0,110080.0,0.00022112]
[1762099515934,1.54782027,110090.0,110080.0,0.00022112]
[1762099516140,1.57017793,110090.0,110080.0,0.00022112]
[1762099517463,1.58955153,110090.0,110080.0,0.00022112]
[1762099518555,1.57017793,110090.0,110080.0,0.00022112]
[1762099518765,1.58955188,110090.0,110080.0,0.00022112]
[1762099518977,1.57017793,110090.0,110080.0,0.00022112]
[1762099519253,1.57017793,110090.0,110080.0,0.18190716]
[1762099519491,1.54782027,110090.0,110080.0,0.18190716]
[1762099520152,0.85225404,110090.0,110080.0,0.18190716]
[1762099520358,1.03392358,110090.0,110080.0,0.18190716]
[1762099520582,0.69392358,110090.0,110080.0,0.18190716]
[1762099521670,0.69392358,110090.0,110080.0,0.00022112]
[1762099521930,0.69392358,110090.0,110080.0,0.18190716]
[1762099522147,1.11755534,110090.0,110080.0,0.00022112]
[1762099522396,1.35928499,110090.0,110080.0,0.00022112]
[1762099522606,0.6415331,110060.0,110050.0,0.00048348]
[1762099522835,0.6823931,110060.0,110050.0,0.00048348]
[1762099523098,0.70475076,110060.0,110050.0,0.00048348]
[1762099524465,1.04475076,110060.0,110050.0,0.00048348]
[1762099524935,1.46838252,110060.0,110050.0,0.00048348]
[1762099525841,1.04475076,110060.0,110050.0,0.00048348]
[1762099526044,1.0223931,110060.0,110050.0,0.00048348]
[1762099527810,1.44602486,110060.0,110050.0,0.00048348]
[1762099528037,1.46539188,110060.0,110050.0,0.00048348]
[1762099528258,1.46539188,110060.0,110050.0,0.00114705]
[1762099528259,1.48774954,110060.0,110050.0,0.00114705]
[1762099531312,1.46539188,110060.0,110050.0,0.00114705]
[1762099531518,1.04176012,110060.0,110050.0,0.00114705]
[1762099532153,1.46539188,110060.0,110050.0,0.00114705]
[1762099532787,1.48774954,110060.0,110050.0,0.00114705]
[1762099534731,1.68774954,110060.0,110050.0,0.00114705]
[1762099535578,1.0223931,110060.0,110050.0,0.00114705]
[1762099536910,1.46838252,110060.0,110050.0,0.00114705]
[1762099537578,1.48772273,110060.0,110050.0,0.00114705]
[1762099541539,1.50450533,110060.0,110050.0,0.00114705]
[1762099541753,1.46536507,110060.0,110050.0,0.00114705]
[1762099542397,1.50093523,110060.0,110050.0,0.00114705]
[1762099542919,1.48415118,110060.0,110050.0,0.00114705]
[1762099543334,1.50093808,110060.0,110050.0,0.00114705]
[1762099544659,0.65367456,110060.0,110050.0,0.00114705]
[1762099544871,0.63488845,110060.0,110050.0,0.00114705]
[1762099545087,1.48215197,110060.0,110050.0,0.00114705]
[1762099545764,1.5024566,110060.0,110050.0,0.00114705]
[1762099546033,1.52662136,110060.0,110050.0,0.00114705]
[1762099546278,1.5024566,110060.0,110000.0,31.08025288]
[1762099546491,1.5024566,110060.0,110000.0,31.04088129]
[1762099546492,0.45056176,110010.0,110000.0,31.04088129]
[1762099546704,0.48674404,110010.0,110000.0,31.22269947]
[1762099546917,0.45056176,110010.0,110000.0,31.22269947]
[1762099547386,0.48674404,110010.0,110000.0,31.22269947]
[1762099547603,0.69277569,110010.0,110000.0,31.04088129]
[1762099547820,0.692824,110010.0,110000.0,31.22269947]
[1762099548246,0.48679235,110010.0,110000.0,31.22269947]
[1762099548463,0.692824,110010.0,110000.0,31.04088129]
[1762099548888,0.692824,110010.0,110000.0,31.22269947]
[1762099549315,0.71662967,110010.0,110000.0,31.04088129]
[1762099551977,0.692824,110010.0,110000.0,31.04088129]
[1762099552432,0.51102235,110010.0,110000.0,31.22380608]
[1762099552867,0.42368007,110010.0,110000.0,31.23585608]
[1762099553082,0.42368007,110010.0,110000.0,31.22380608]
[1762099553299,0.44011007,110010.0,110000.0,31.22380608]
[1762099553534,0.45202007,110010.0,110000.0,31.22380608]
[1762099553965,0.47625007,110010.0,110000.0,31.22380608]
[1762099554728,0.45202007,110010.0,110000.0,31.22380608]
[1762099557195,0.02838831,110010.0,110000.0,31.22380608]
[1762099557453,0.45202007,110010.0,110000.0,31.22380608]
[1762099559442,4.831e-05,110010.0,110000.0,31.22380608]
[1762099559596,4.831e-05,110010.0,110000.0,31.23585608]
[1762099560791,4.831e-05,110010.0,110000.0,31.22380608]
[1762099561318,4.831e-05,110010.0,110000.0,31.23585608]
[1762099564494,4.831e-05,110010.0,110000.0,32.06756754]
[1762099566216,4.831e-05,110010.0,110000.0,31.57585608]
[1762099566479,0.54432977,110010.0,110000.0,31.22380608]
[1762099566673,0.52009977,110010.0,110000.0,31.22380608]
[1762099567303,0.02838831,110010.0,110000.0,31.22380608]
[1762099567769,0.02838831,110010.0,110000.0,31.23585608]
[1762099567770,4.831e-05,110010.0,110000.0,31.23585608]
[1762099568193,4.831e-05,110010.0,110000.0,31.57585608]
[1762099568613,4.831e-05,110010.0,110000.0,32.07756753]
[1762099568850,4.831e-05,110010.0,110000.0,31.57585608]
[1762099570219,4.831e-05,110010.0,110000.0,31.22380608]
[1762099570658,0.01647831,110010.0,110000.0,31.22380608]
[1762099570881,0.52009977,110010.0,110000.0,31.22380608]
[1762099571111,4.831e-05,110010.0,110000.0,31.22380608]
[1762099571353,0.19827996,110010.0,110000.0,31.22380608]
[1762099571567,0.71422142,110010.0,110000.0,31.22380608]
[1762099573750,0.53241977,110010.0,110000.0,31.22380608]
[1762099574031,0.50818977,110010.0,110000.0,31.22380608]
[1762099574253,4.831e-05,110010.0,110000.0,31.23585608]
[1762099576936,0.71280142,110010.0,110000.0,31.22380608]
[1762099577161,0.50816977,110010.0,110000.0,31.22380608]
[1762099577385,4.831e-05,110010.0,110000.0,31.23585608]
[1762099577807,0.68997142,110010.0,110000.0,31.0419879]
[1762099578044,0.71280142,110010.0,110000.0,31.0419879]
[1762099578270,4.831e-05,110010.0,110000.0,31.23585608]
[1762099578484,0.01645831,110010.0,110000.0,31.22380608]
[1762099578693,0.50816977,110010.0,110000.0,31.22380608]
[1762099578913,4.831e-05,110010.0,110000.0,31.22380608]
[1762099579119,4.831e-05,110010.0,110000.0,31.23585608]
[1762099582544,4.831e-05,110010.0,110000.0,31.22380608]
[1762099582757,0.01645831,110010.0,110000.0,31.22380608]
[1762099582974,4.831e-05,110010.0,110000.0,31.22380608]
[1762099583191,4.831e-05,110010.0,110000.0,31.23585608]
[1762099588697,4.831e-05,110010.0,110000.0,31.0419879]
[1762099588698,0.71330142,110010.0,110000.0,31.0419879]